[Event "84th ESP-ch 2019"]
[Site "Marbella"]
[Date "2019.11.17"]
[Round "2.38"]
[White "Guillo Longares, Cecilia"]
[Black "Espejo Montagut, Jose Maria"]
[Result "1-0"]
[ECO "D70"]
[WhiteElo "2100"]
[BlackElo "1768"]
[Annotator "NA RC"]
[PlyCount "95"]
[EventDate "2019.11.16"]
[EventType "swiss"]
[EventCountry "ESP"]
[SourceTitle "playchess.com"]
[Source "ChessBase"]
[SourceQuality "1"]
[TimeControl "5400+30"]

1. d4 {[%emt 0:00:00]} Nf6 {[%emt 0:00:00]} 2. c4 {[%emt 0:00:00]} g6 {[%emt 0:00:00]} 3. Nf3 {[%emt 0:00:00]} Bg7 {[%emt 0:00:12]} 4. g3 {[%emt 0:00:00]} O-O {[%emt 0:00:56]} 5. Bg2 {[%emt 0:00:07]} d6 {[%emt 0:03:46]} 6. O-O {[%emt 0:00:08]} Nbd7 {[%emt 0:01:49]} 7. Nc3 {[%emt 0:00:16]} c6 {[%emt 0:05:38]} 8. b3 {[%emt 0:02:45]} e5 {[%emt 0:02:22]} 9. e3 {[%emt 0:03:31]} Re8 {[%emt 0:07:36]} 10. Nd2 {[%emt 0:02:44] E67: King's Indian: Fianchetto: 6...Nbd7} (10. Ba3 e4 11. Nd2 d5 12. Qc1 a6 13. cxd5 cxd5 14. Na4 b5 15. Nc5 Nb8 16. b4 h5 17. h3 Ra7 18. Qd1 {0-1 (34) Huzman,A (2580)-Vishnu,P (2518) St Petersburg 2018}) 10... Nb6 $146 {[%emt 0:06:04]} ({Better is Predecessor:} 10... d5 $15 11. cxd5 cxd5 12. Nb5 Qb6 13. dxe5 Nxe5 14. Nd4 Bg4 15. f3 Bd7 16. a4 Nc6 17. Nb1 Nxd4 18. exd4 Ng4 19. a5 Qxd4+ {0-1 (19) Torres Bravo,C (2178)-Egger Mancilla,J (2431) Santiago de Chile 2007}) 11. a4 {[%emt 0:03:11]} Nbd7 {[%emt 0:09:02]} 12. Ba3 {[%emt 0:02:07]} exd4 {[%emt 0:02:15]} 13. exd4 {[%emt 0:00:24]} Nf8 {[%emt 0:08:12]} 14. Nde4 {[%emt 0:03:24]} Nxe4 {[%emt 0:02:29]} 15. Nxe4 {[%emt 0:00:08]} d5 {[%emt 0:01:03]} 16. cxd5 {[%emt 0:12:21]} cxd5 {[%emt 0:00:10]} 17. Nd6 {[%emt 0:00:05]} Re6 {[%emt 0:02:06]} 18. Nb5 {[%emt 0:00:42]} Rf6 {[%emt 0:08:18]} 19. Rc1 {[%emt 0:04:51]} Rc6 {[%emt 0:04:39]} 20. Rc5 {[%emt 0:08:16]} Be6 {[%emt 0:01:40]} 21. Qc1 {[%emt 0:07:58]} Qd7 {[%emt 0:01:39]} 22. Rd1 {[%emt 0:03:09]} a6 {[%emt 0:04:35]} 23. Nc3 {[%emt 0:02:56]} Rxc5 {[%emt 0:01:06]} 24. dxc5 $15 {[%emt 0:00:22]} (24. Bxc5 $11 h5 25. b4) 24... d4 {[%emt 0:01:43]} 25. Qc2 {[%emt 0:01:41]} Rd8 {[%emt 0:07:26]} 26. Be4 {[%emt 0:03:48]} h5 {[%emt 0:04:38]} 27. Ne2 {[%emt 0:01:49]} Qc7 {[%emt 0:01:11]} 28. Nf4 {[%emt 0:06:02]} Bg4 {[%emt 0:01:05]} 29. Re1 {[%emt 0:02:58]} Qc8 {[%emt 0:02:36]} 30. Qc4 {[%emt 0:02:09]} Be6 {[%emt 0:01:51]} 31. Nxe6 {[%emt 0:01:15]} fxe6 {[%emt 0:01:51]} 32. Qd3 {[%emt 0:00:23]} Kh7 {[%emt 0:02:01]} 33. Qf3 {[%emt 0:00:07]} Kg8 {[%emt 0:01:28]} 34. Bxb7 {[%emt 0:00:15]} Qc7 {[%emt 0:00:25]} 35. Bxa6 {[%emt 0:00:54]} e5 {[%emt 0:01:18]} 36. Bc4+ {[%emt 0:01:17]} Kh8 {[%emt 0:00:10]} 37. b4 {[%emt 0:01:02]} Nh7 {[%emt 0:00:35]} 38. Bc1 {[%emt 0:02:13]} Nf6 {[%emt 0:00:24]} 39. Bd3 {[%emt 0:01:17]} Rf8 {[%emt 0:00:20]} 40. Bxg6 {[%emt 0:02:54]} Ng4 {[%emt 0:00:06]} 41. Qe4 {[%emt 0:00:23]} Nxf2 {[%emt 0:00:51]} 42. Qh4 {[%emt 0:00:20]} Rf6 {[%emt 0:01:48]} 43. Qxh5+ {[%emt 0:01:15]} Kg8 {[%emt 0:00:06]} 44. Bh7+ {[%emt 0:03:50]} Kf8 {[%emt 0:00:29]} 45. Rf1 {[%emt 0:00:17]} e4 {[%emt 0:00:49]} 46. Rxf2 {[%emt 0:01:17]} Rxf2 {[%emt 0:00:32]} 47. Kxf2 {[%emt 0:00:05]} Qd7 {[%emt 0:02:16]} 48. Qf5+ {[%emt 0:00:08]} 1-0

[Event "84th ESP-ch 2019"]
[Site "Marbella"]
[Date "2019.11.17"]
[Round "2.39"]
[White "Lozano Aguilar, Juan Francisco"]
[Black "Carbonell Bofill, Carlos Eloy"]
[Result "0-1"]
[ECO "A50"]
[WhiteElo "1768"]
[BlackElo "2098"]
[Annotator "NA RC"]
[PlyCount "124"]
[EventDate "2019.11.16"]
[EventType "swiss"]
[EventCountry "ESP"]
[SourceTitle "playchess.com"]
[Source "ChessBase"]
[SourceQuality "1"]
[TimeControl "5400+30"]

1. d4 {[%emt 0:00:07]} Nf6 {[%emt 0:00:11]} 2. c4 {[%emt 0:00:14]} c6 {[%emt 0:01:49]} 3. Nc3 {[%emt 0:00:45]} d5 {[%emt 0:00:03]} 4. cxd5 {[%emt 0:01:38]} cxd5 {[%emt 0:00:03]} 5. Nf3 {[%emt 0:00:23]} Nc6 {[%emt 0:00:01]} 6. Bf4 {[%emt 0:03:37]} e6 {[%emt 0:00:02]} 7. a3 {[%emt 0:01:25]} Bd6 {[%emt 0:00:08] D13: Slav Defence: Exchange variation without ...Bf5} 8. Bxd6 {[%emt 0:06:02]} Qxd6 {[%emt 0:00:05]} 9. e3 {[%emt 0:03:47]} O-O {[%emt 0:00:32]} 10. Bd3 {[%emt 0:00:39]} (10. Be2 Bd7 11. O-O {½-½ (11) Stojanovic,M (2572)-Mirzoev,A (2563) Basel 2011}) 10... e5 {[%emt 0:00:34]} 11. Nb5 {[%emt 0:03:38]} Qe7 {[%emt 0:00:02]} 12. dxe5 {[%emt 0:02:00]} Nxe5 {[%emt 0:00:31]} 13. Nxe5 {[%emt 0:05:48]} Qxe5 {[%emt 0:00:21]} 14. Nd4 {[%emt 0:00:16]} Re8 {[%emt 0:00:01]} 15. O-O {[%emt 0:01:09]} Ng4 $146 {[%emt 0:00:05]} ({Predecessor:} 15... Kh8 16. h3 Bd7 {½-½ (30) Kiendl,T (1651)-Angermeier,G (1720) Germany 2005}) 16. g3 {[%emt 0:08:19]} h5 {[%emt 0:00:29]} 17. Qf3 {[%emt 0:04:35]} g6 {[%emt 0:04:58]} 18. Rac1 {[%emt 0:05:57]} Bd7 {[%emt 0:04:34]} 19. Rc5 {[%emt 0:01:49]} Nf6 {[%emt 0:03:28]} 20. h4 {[%emt 0:06:43]} Rac8 {[%emt 0:02:13]} 21. Rfc1 {[%emt 0:00:12]} Rxc5 {[%emt 0:00:14]} 22. Rxc5 {[%emt 0:00:13]} Kg7 {[%emt 0:03:50]} 23. Bc4 {[%emt 0:03:01]} b6 {[%emt 0:02:10]} 24. Rxd5 {[%emt 0:05:43]} Nxd5 {[%emt 0:00:03]} 25. Bxd5 {[%emt 0:00:27]} Qf6 {[%emt 0:02:00]} 26. Qd1 {[%emt 0:04:52]} Rc8 {[%emt 0:00:38]} 27. Kg2 {[%emt 0:00:32]} Rc5 {[%emt 0:00:25]} 28. Bf3 {[%emt 0:01:16]} Bc8 {[%emt 0:02:16]} 29. Qa4 {[%emt 0:03:44]} a5 {[%emt 0:00:05]} 30. b4 {[%emt 0:00:49]} axb4 {[%emt 0:03:14]} 31. axb4 {[%emt 0:00:15]} Rc7 {[%emt 0:02:39]} 32. b5 {[%emt 0:01:30]} Rc1 $17 {[%emt 0:01:58]} 33. Qa3 {[%emt 0:04:58]} Rc5 {[%emt 0:01:32]} 34. Qa7 {[%emt 0:01:02]} g5 {[%emt 0:11:51]} 35. hxg5 {[%emt 0:01:02]} Rxg5 {[%emt 0:00:06]} 36. Qc7 {[%emt 0:02:52]} Bg4 {[%emt 0:01:06]} 37. Qf4 {[%emt 0:00:54]} Qxf4 {[%emt 0:05:37]} 38. gxf4 {[%emt 0:00:14]} Bxf3+ {[%emt 0:00:13]} 39. Kxf3 {[%emt 0:01:36]} Rg1 {[%emt 0:00:36]} 40. Ne2 {[%emt 0:01:43]} Rb1 {[%emt 0:00:05]} 41. Nd4 {[%emt 0:00:18]} Rg1 {[%emt 0:08:13]} 42. Ne2 {[%emt 0:00:13]} Rg4 {[%emt 0:03:51]} 43. Ng3 {[%emt 0:01:14]} Kh6 {[%emt 0:00:01]} 44. e4 {[%emt 0:01:59]} Rg8 {[%emt 0:00:30]} 45. Nf5+ {[%emt 0:00:39]} Kh7 {[%emt 0:00:02]} 46. e5 {[%emt 0:01:05]} Rg1 {[%emt 0:00:56]} 47. Ke2 {[%emt 0:01:16]} Rb1 {[%emt 0:01:23]} 48. Nd6 {[%emt 0:00:11]} Kg6 {[%emt 0:02:35]} 49. f5+ {[%emt 0:01:24]} Kg7 {[%emt 0:03:32]} 50. f3 {[%emt 0:00:39]} h4 {[%emt 0:02:21]} 51. Kf2 {[%emt 0:00:09]} Rb2+ {[%emt 0:00:02]} 52. Kf1 {[%emt 0:00:23]} h3 {[%emt 0:09:01]} 53. Kg1 {[%emt 0:00:06]} Rg2+ {[%emt 0:00:06]} 54. Kh1 {[%emt 0:00:06]} Rb2 {[%emt 0:05:39]} 55. Kg1 {[%emt 0:00:45]} Re2 {[%emt 0:04:02]} 56. Nc4 {[%emt 0:01:33]} Kh6 {[%emt 0:00:09]} 57. f4 {[%emt 0:00:22]} Kh5 {[%emt 0:00:08]} 58. e6 {[%emt 0:00:23]} fxe6 {[%emt 0:01:43]} 59. fxe6 {[%emt 0:01:03]} Kh4 {[%emt 0:01:05]} 60. Ne5 {[%emt 0:02:01]} Kg3 {[%emt 0:00:43]} 61. Nd3 {[%emt 0:00:33]} h2+ {[%emt 0:01:03]} 62. Kf1 {[%emt 0:01:43]} Rg2 {[%emt 0:00:25]} 0-1

[Event "84th ESP-ch 2019"]
[Site "Marbella"]
[Date "2019.11.17"]
[Round "2.40"]
[White "Lopez Guerrero, Jose Miguel"]
[Black "Fernandez Cantalapiedra, Isabel"]
[Result "1-0"]
[ECO "B12"]
[WhiteElo "2085"]
[BlackElo "1754"]
[Annotator "NA RC"]
[PlyCount "157"]
[EventDate "2019.11.16"]
[EventType "swiss"]
[EventCountry "ESP"]
[SourceTitle "playchess.com"]
[Source "ChessBase"]
[SourceQuality "1"]
[TimeControl "5400+30"]

1. e4 {[%emt 0:00:00]} c6 {[%emt 0:01:21]} 2. d4 {[%emt 0:00:16]} d5 {[%emt 0:00:12]} 3. e5 {[%emt 0:00:06]} c5 {[%emt 0:00:08]} 4. dxc5 {[%emt 0:00:32]} Nc6 {[%emt 0:00:24]} 5. Bb5 {[%emt 0:03:25]} e6 {[%emt 0:03:38]} 6. Nf3 {[%emt 0:02:23] B12: Caro-Kann: Advance Variation} (6. Be3 Nge7 7. c3 Bd7 8. Bxc6 Nxc6 9. f4 Qc7 10. Nf3 Na5 11. b4 Nc4 12. Bd4 b6 13. cxb6 axb6 14. O-O Be7 15. Nfd2 O-O 16. Nxc4 dxc4 {½-½ (44) Jakovenko,D (2752)-Granda Zuniga,J (2641) Porto Carras 2018}) 6... Bxc5 {[%emt 0:01:09]} 7. O-O {[%emt 0:00:13]} Nge7 {[%emt 0:03:33]} 8. c4 {[%emt 0:03:19]} O-O {[%emt 0:04:59]} 9. Nc3 {[%emt 0:02:47]} dxc4 {[%emt 0:13:33]} 10. Bf4 $146 {[%emt 0:09:59]} ({Predecessor:} 10. Qxd8 Rxd8 11. Ne4 Bb6 12. Bg5 Rf8 13. Bxe7 Nxe7 {½-½ (47) Kosanski,S (2416)-Jakupovic,N (2313) Neum 2000}) 10... Qxd1 {[%emt 0:10:19]} 11. Rfxd1 {[%emt 0:01:15]} Bb4 {[%emt 0:01:57]} 12. Bxc4 {[%emt 0:02:18]} Bxc3 {[%emt 0:04:33]} 13. bxc3 {[%emt 0:00:02]} b6 {[%emt 0:01:36]} 14. Bc1 {[%emt 0:05:33]} Na5 {[%emt 0:09:32]} 15. Be2 {[%emt 0:01:35]} Bb7 {[%emt 0:09:07]} 16. Ba3 {[%emt 0:00:29]} Rfe8 {[%emt 0:00:45]} 17. Nd4 {[%emt 0:00:24]} Nd5 {[%emt 0:05:29]} 18. Rac1 {[%emt 0:01:09]} Nf4 {[%emt 0:10:40]} 19. Bf1 {[%emt 0:00:23]} Red8 {[%emt 0:01:33]} 20. g3 $16 {[%emt 0:04:37]} Ng6 {[%emt 0:01:28]} 21. f4 {[%emt 0:00:10]} a6 {[%emt 0:04:29]} 22. Bd6 {[%emt 0:02:38]} Rdc8 {[%emt 0:00:45] [#]} 23. c4 $1 {[%emt 0:00:23]} Nf8 {[%emt 0:00:56]} 24. f5 {[%emt 0:02:50]} Be4 {[%emt 0:03:31]} 25. fxe6 {[%emt 0:03:37]} Nxe6 {[%emt 0:00:45]} 26. Bh3 {[%emt 0:01:19]} Re8 {[%emt 0:03:42]} 27. Nxe6 {[%emt 0:06:51]} fxe6 {[%emt 0:00:04]} 28. c5 {[%emt 0:00:16]} bxc5 {[%emt 0:01:22]} 29. Rxc5 {[%emt 0:00:02]} Nb7 {[%emt 0:00:41]} 30. Rc7 {[%emt 0:00:07]} Nd8 {[%emt 0:00:32]} 31. Re7 {[%emt 0:06:20]} Bg6 {[%emt 0:00:47]} 32. Rxe8+ {[%emt 0:00:21]} Bxe8 {[%emt 0:00:02]} 33. Be7 {[%emt 0:00:21]} Nc6 {[%emt 0:02:10]} 34. Bd6 {[%emt 0:02:04]} Bf7 {[%emt 0:00:27]} 35. Bg2 {[%emt 0:01:06]} Rc8 {[%emt 0:00:02]} 36. Rc1 {[%emt 0:00:32]} Be8 {[%emt 0:01:06]} 37. Rc5 {[%emt 0:02:25]} Na7 {[%emt 0:00:18]} 38. Rxc8 {[%emt 0:00:39]} Nxc8 {[%emt 0:00:01]} 39. Bb7 {[%emt 0:00:27]} Nxd6 {[%emt 0:00:13]} 40. exd6 {[%emt 0:00:02]} Bd7 {[%emt 0:01:13]} 41. Bxa6 {[%emt 0:00:24]} Kf7 {[%emt 0:00:12]} 42. Bd3 {[%emt 0:04:40]} h6 {[%emt 0:00:39]} 43. Bc2 {[%emt 0:00:17]} Kf6 {[%emt 0:00:17]} 44. a4 {[%emt 0:00:06]} Ke5 {[%emt 0:00:14]} 45. a5 {[%emt 0:00:05]} Kxd6 {[%emt 0:00:35]} 46. Bd3 {[%emt 0:00:13]} Bc6 {[%emt 0:01:23]} 47. Kf2 {[%emt 0:00:12]} e5 {[%emt 0:00:26]} 48. Ke3 {[%emt 0:00:11]} Kc7 {[%emt 0:00:27]} 49. h4 {[%emt 0:00:32]} g5 {[%emt 0:00:24]} 50. hxg5 {[%emt 0:01:06]} hxg5 {[%emt 0:00:02]} 51. Be4 {[%emt 0:00:27]} Bb5 {[%emt 0:00:02]} 52. Bd5 {[%emt 0:00:23]} Kd6 {[%emt 0:00:30]} 53. Bb7 {[%emt 0:00:46]} Bf1 {[%emt 0:01:43]} 54. a6 {[%emt 0:00:22]} Kc7 {[%emt 0:00:20]} 55. Ke4 {[%emt 0:00:08]} Be2 {[%emt 0:00:40]} 56. Kxe5 {[%emt 0:00:24]} g4 {[%emt 0:00:12]} 57. Kf4 {[%emt 0:02:32]} Kb8 {[%emt 0:00:15]} 58. Ke3 {[%emt 0:00:32]} Bd1 {[%emt 0:00:17]} 59. Be4 {[%emt 0:00:24]} Ka7 {[%emt 0:00:27]} 60. Bd3 {[%emt 0:00:28]} Ba4 {[%emt 0:01:08]} 61. Be2 {[%emt 0:00:23]} Bd7 {[%emt 0:00:14]} 62. Kf4 {[%emt 0:00:08]} Bc8 {[%emt 0:00:28]} 63. Kg5 {[%emt 0:01:21]} Kb6 {[%emt 0:00:30]} 64. Kf4 {[%emt 0:02:21]} Ka7 {[%emt 0:00:02]} 65. Bxg4 {[%emt 0:02:09]} Bxa6 {[%emt 0:00:01]} 66. Bf3 {[%emt 0:00:15]} Bc8 {[%emt 0:00:28]} 67. Be4 {[%emt 0:00:06]} Bd7 {[%emt 0:00:57]} 68. Bf5 {[%emt 0:00:13]} Be8 {[%emt 0:00:05]} 69. g4 {[%emt 0:00:15]} Kb6 {[%emt 0:00:11]} 70. Ke5 {[%emt 0:00:18]} Kc7 {[%emt 0:00:16]} 71. Kf6 {[%emt 0:00:16]} Kd6 {[%emt 0:00:20]} 72. g5 {[%emt 0:00:52]} Bh5 {[%emt 0:00:46]} 73. Be6 {[%emt 0:00:27]} Be8 {[%emt 0:01:54]} 74. Bf7 {[%emt 0:00:11]} Ba4 {[%emt 0:00:13]} 75. g6 {[%emt 0:00:41]} Bc2 {[%emt 0:00:27]} 76. g7 {[%emt 0:00:10]} Bh7 {[%emt 0:00:10]} 77. Kg5 {[%emt 0:00:13]} Ke7 {[%emt 0:01:34]} 78. Bb3 {[%emt 0:00:17]} Ke8 {[%emt 0:00:37]} 79. Kh6 {[%emt 0:00:05]} 1-0

[Event "84th ESP-ch 2019"]
[Site "Marbella"]
[Date "2019.11.17"]
[Round "2.41"]
[White "Juan Lepp, Jaime Boris"]
[Black "Medina Romero, Jose"]
[Result "0-1"]
[ECO "B06"]
[WhiteElo "1746"]
[BlackElo "2083"]
[Annotator "NA RC"]
[PlyCount "93"]
[EventDate "2019.11.16"]
[EventType "swiss"]
[EventCountry "ESP"]
[SourceTitle "playchess.com"]
[Source "ChessBase"]
[SourceQuality "1"]
[TimeControl "5400+30"]

1. e4 {[%emt 0:03:30]} g6 {[%emt 0:00:00]} 2. f4 {[%emt 0:00:27]} Bg7 {[%emt 0:00:06]} 3. Nc3 {[%emt 0:00:16]} c6 {[%emt 0:00:50]} 4. Nf3 {[%emt 0:03:50]} d5 {[%emt 0:00:07]} 5. exd5 {[%emt 0:04:55]} (5. Qe2 Bg4 6. exd5 Nf6 7. dxc6 Nxc6 8. Qf2 O-O 9. d3 Bxf3 10. Qxf3 Nd4 11. Qd1 Rc8 12. Be2 {0-1 (27) Dvalishvili,P (2433)-Bologan,V (2615) Moscow 2017}) 5... cxd5 {[%emt 0:00:13]} 6. Bb5+ {[%emt 0:01:01] B06: Modern Defence} Nc6 {[%emt 0:00:10]} 7. d3 {[%emt 0:12:41]} Nf6 {[%emt 0:01:28]} 8. Ne5 $146 {[%emt 0:03:52]} ({Predecessor:} 8. Bxc6+ bxc6 9. O-O O-O 10. d4 Bg4 11. Ne2 Bxf3 12. Rxf3 {½-½ (51) Bohnert,D (1976)-Van Klev,F (1748) Lingen 2013}) 8... Bd7 {[%emt 0:02:23]} 9. Bxc6 {[%emt 0:02:22]} Bxc6 {[%emt 0:01:28]} 10. Qe2 {[%emt 0:10:29]} O-O {[%emt 0:00:37]} 11. O-O {[%emt 0:05:14]} e6 {[%emt 0:04:19]} 12. Kh1 {[%emt 0:03:40]} Rc8 {[%emt 0:01:23]} 13. Nd1 {[%emt 0:04:57]} b6 {[%emt 0:06:08]} 14. b3 {[%emt 0:01:47]} Bb7 {[%emt 0:00:24]} 15. Ba3 {[%emt 0:02:08]} Re8 {[%emt 0:00:13]} 16. Nf2 {[%emt 0:01:52]} a5 {[%emt 0:06:17]} 17. Rac1 {[%emt 0:03:09]} b5 {[%emt 0:04:09]} 18. c4 {[%emt 0:04:34]} dxc4 {[%emt 0:09:11]} 19. dxc4 {[%emt 0:01:36]} b4 {[%emt 0:05:21]} 20. Rfd1 {[%emt 0:01:38]} Qc7 {[%emt 0:01:13]} 21. Bb2 {[%emt 0:00:22]} Red8 {[%emt 0:01:56]} 22. Bd4 $11 {[%emt 0:08:22]} Nh5 {[%emt 0:09:02]} 23. Nh3 {[%emt 0:04:35]} Rxd4 {[%emt 0:03:47]} 24. Rxd4 {[%emt 0:01:25]} Nxf4 {[%emt 0:00:06]} 25. Rxf4 {[%emt 0:01:05]} Bxe5 {[%emt 0:00:13]} 26. Rf2 {[%emt 0:00:51]} Bd4 {[%emt 0:12:59]} 27. Rf4 {[%emt 0:04:36]} e5 {[%emt 0:02:12]} 28. Rff1 {[%emt 0:04:27]} Qe7 {[%emt 0:05:41]} 29. Nf2 {[%emt 0:02:12]} Re8 {[%emt 0:13:17]} 30. Rce1 {[%emt 0:01:11]} f5 {[%emt 0:01:03]} 31. Nd3 {[%emt 0:00:57]} Kg7 {[%emt 0:01:38]} 32. Nf4 {[%emt 0:01:01]} Bc3 {[%emt 0:00:10]} 33. Nd5 {[%emt 0:01:32]} Bxd5 {[%emt 0:00:07]} 34. cxd5 {[%emt 0:00:21]} Bxe1 {[%emt 0:00:50]} 35. Rxe1 {[%emt 0:00:12]} Qd6 {[%emt 0:00:56]} 36. Qb5 {[%emt 0:00:41]} Rc8 {[%emt 0:02:08]} 37. Qxa5 {[%emt 0:00:47]} Rc2 {[%emt 0:00:20]} 38. Qa7+ {[%emt 0:00:55]} Rc7 {[%emt 0:01:12]} 39. Qa5 {[%emt 0:01:13]} e4 {[%emt 0:00:29]} 40. h3 {[%emt 0:00:53]} h5 {[%emt 0:00:34]} 41. Qb5 {[%emt 0:00:30]} h4 {[%emt 0:01:42]} 42. Rd1 {[%emt 0:00:18]} Rc3 {[%emt 0:01:56]} 43. Qe2 {[%emt 0:00:56]} Kh6 {[%emt 0:00:55]} 44. Qf2 {[%emt 0:00:25]} Rg3 {[%emt 0:00:29]} 45. Qd2+ {[%emt 0:00:34]} e3 {[%emt 0:00:33]} 46. Qd4 {[%emt 0:00:18]} f4 {[%emt 0:00:36]} 47. Kg1 0-1

[Event "84th ESP-ch 2019"]
[Site "Marbella"]
[Date "2019.11.17"]
[Round "2.42"]
[White "Aguado Doncel, Pablo Luis"]
[Black "Munoz Jorva, Miguel Angel"]
[Result "1-0"]
[ECO "D10"]
[WhiteElo "2062"]
[BlackElo "1721"]
[Annotator "NA RC"]
[PlyCount "57"]
[EventDate "2019.11.16"]
[EventType "swiss"]
[EventCountry "ESP"]
[SourceTitle "playchess.com"]
[Source "ChessBase"]
[SourceQuality "1"]
[TimeControl "5400+30"]

1. d4 {[%emt 0:00:00]} d5 {[%emt 0:00:25]} 2. c4 {[%emt 0:00:00]} c6 {[%emt 0:00:38]} 3. Nc3 {[%emt 0:00:23]} dxc4 {[%emt 0:01:31]} 4. e3 {[%emt 0:02:13]} e5 {[%emt 0:09:38]} 5. Bxc4 {[%emt 0:01:55]} Bb4 {[%emt 0:11:15]} 6. Bxf7+ {[%emt 0:02:53]} Kf8 {[%emt 0:08:37]} 7. Bb3 {[%emt 0:01:33]} exd4 {[%emt 0:02:49]} 8. exd4 {[%emt 0:00:49]} Qe7+ {[%emt 0:01:37]} 9. Be3 {[%emt 0:05:42]} Nf6 {[%emt 0:01:32]} 10. Nge2 {[%emt 0:04:18]} Be6 {[%emt 0:01:33]} 11. O-O {[%emt 0:01:50]} Na6 {[%emt 0:08:47]} 12. Bg5 {[%emt 0:08:33]} Bxb3 {[%emt 0:03:23]} 13. Qxb3 {[%emt 0:00:31]} Qf7 {[%emt 0:00:36]} 14. Bxf6 {[%emt 0:01:06]} gxf6 {[%emt 0:02:04]} 15. d5 {[%emt 0:05:26]} cxd5 {[%emt 0:10:51]} 16. Nxd5 {[%emt 0:02:01]} Bd6 {[%emt 0:01:27]} 17. Ng3 {[%emt 0:01:12]} Nb4 {[%emt 0:07:42]} 18. Rad1 {[%emt 0:01:31]} Nxd5 {[%emt 0:06:26]} 19. Rxd5 {[%emt 0:00:25]} Bxg3 {[%emt 0:00:40]} 20. fxg3 {[%emt 0:00:31]} Re8 {[%emt 0:03:25]} 21. Qb4+ {[%emt 0:01:03]} Re7 {[%emt 0:02:48]} 22. Rdf5 {[%emt 0:00:45]} Ke8 {[%emt 0:05:37]} 23. Qb5+ {[%emt 0:01:13]} Rd7 {[%emt 0:02:34]} 24. Rxf6 {[%emt 0:00:36]} Qd5 {[%emt 0:00:44]} 25. Qe2+ {[%emt 0:07:08]} Re7 {[%emt 0:00:30]} 26. Qc2 {[%emt 0:02:19]} Qd4+ {[%emt 0:00:26]} 27. Kh1 {[%emt 0:00:56]} Qxf6 {[%emt 0:04:31]} 28. Qc8+ {[%emt 0:00:04]} Kf7 {[%emt 0:00:01]} 29. Rxf6+ {[%emt 0:00:06]} 1-0

[Event "84th ESP-ch 2019"]
[Site "Marbella"]
[Date "2019.11.18"]
[Round "3.11"]
[White "Del Rio De Angelis, Salvador G."]
[Black "Berrocal Ruiz, Valentin"]
[Result "1-0"]
[ECO "E70"]
[WhiteElo "2502"]
[BlackElo "2143"]
[Annotator "RC"]
[PlyCount "117"]
[EventDate "2019.11.16"]
[EventType "swiss"]
[EventCountry "ESP"]
[SourceTitle "playchess.com"]
[Source "ChessBase"]
[SourceQuality "1"]
[TimeControl "5400+30"]

1. d4 {[%emt 0:00:00]} Nf6 {[%emt 0:00:00]} 2. c4 {[%emt 0:00:00]} g6 {[%emt 0:00:00]} 3. Nc3 {[%emt 0:00:10]} Bg7 {[%emt 0:00:00]} 4. e4 {[%emt 0:00:09]} O-O {[%emt 0:00:00]} 5. Be3 {[%emt 0:00:28]} d6 {[%emt 0:01:19]} 6. h3 {[%emt 0:00:08]} e5 {[%emt 0:00:54]} 7. d5 {[%emt 0:00:07]} Na6 {[%emt 0:01:29]} 8. g4 {[%emt 0:00:16]} Nc5 {[%emt 0:00:57]} 9. f3 {[%emt 0:00:09]} a5 {[%emt 0:00:34]} 10. h4 {[%emt 0:00:39]} c6 {[%emt 0:09:00]} 11. Nh3 {[%emt 0:01:01]} cxd5 {[%emt 0:05:13]} 12. cxd5 {[%emt 0:00:09]} Qb6 {[%emt 0:04:47]} 13. Qd2 {[%emt 0:05:40]} Bd7 {[%emt 0:05:04]} 14. Nf2 {[%emt 0:05:30]} a4 {[%emt 0:07:31]} 15. Nd3 {[%emt 0:08:41]} Nxd3+ {[%emt 0:03:59]} 16. Bxd3 {[%emt 0:00:07]} Qa5 {[%emt 0:00:11]} 17. Nd1 {[%emt 0:03:34]} Rfc8 {[%emt 0:04:10]} 18. Qxa5 {[%emt 0:03:12]} Rxa5 {[%emt 0:00:07]} 19. Bd2 {[%emt 0:01:53]} Raa8 {[%emt 0:03:09]} 20. Ne3 {[%emt 0:00:56]} b5 {[%emt 0:05:15]} 21. Ke2 {[%emt 0:14:49]} h5 {[%emt 0:08:46]} 22. Rhg1 {[%emt 0:02:59]} Bf8 {[%emt 0:01:05]} 23. g5 {[%emt 0:07:19]} Ne8 {[%emt 0:00:18]} 24. Nc2 {[%emt 0:00:57]} Nc7 {[%emt 0:02:22]} 25. b4 {[%emt 0:03:44]} Bg7 {[%emt 0:08:56]} 26. Na3 {[%emt 0:00:35]} Kf8 {[%emt 0:05:31]} 27. Rac1 {[%emt 0:00:10]} Ke7 {[%emt 0:00:47]} 28. Rc2 {[%emt 0:00:13]} Rab8 {[%emt 0:01:54]} 29. Rgc1 {[%emt 0:01:30]} Kd8 {[%emt 0:01:15]} 30. Kf2 {[%emt 0:00:32]} Bh8 {[%emt 0:01:34]} 31. Kg3 {[%emt 0:00:15]} Bg7 {[%emt 0:01:54]} 32. Bf1 {[%emt 0:00:20]} Bh8 {[%emt 0:02:36]} 33. Be3 {[%emt 0:03:01]} Bg7 {[%emt 0:01:05]} 34. Bh3 {[%emt 0:01:49]} Bf8 {[%emt 0:03:36]} 35. Bxd7 {[%emt 0:04:07]} Kxd7 {[%emt 0:00:06]} 36. Rc6 {[%emt 0:00:09]} Be7 {[%emt 0:00:40]} 37. Kf2 {[%emt 0:01:14]} Bd8 {[%emt 0:02:32]} 38. Ke2 {[%emt 0:00:44]} Rb7 {[%emt 0:01:21]} 39. Bb6 {[%emt 0:04:30]} Rbb8 {[%emt 0:02:34]} 40. Be3 {[%emt 0:03:10]} Be7 {[%emt 0:00:40]} 41. R1c2 {[%emt 0:02:02]} Bd8 {[%emt 0:00:44]} 42. Kd3 {[%emt 0:04:46]} Be7 {[%emt 0:00:45]} 43. Bb6 {[%emt 0:03:13]} Bd8 {[%emt 0:00:14]} 44. Ba5 {[%emt 0:00:14]} Rb7 {[%emt 0:00:26]} 45. Ke3 {[%emt 0:01:30]} Rbb8 {[%emt 0:01:00]} 46. f4 {[%emt 0:00:26]} exf4+ {[%emt 0:01:22]} 47. Kxf4 {[%emt 0:00:05]} Rb7 {[%emt 0:00:06]} 48. Ke3 {[%emt 0:01:14]} Rbb8 {[%emt 0:02:14]} 49. Kd3 {[%emt 0:00:22]} Rb7 {[%emt 0:02:33]} 50. e5 {[%emt 0:01:30]} dxe5 {[%emt 0:01:06]} 51. d6 {[%emt 0:00:30]} Nd5 {[%emt 0:00:37]} 52. Rxc8 {[%emt 0:00:05]} Bxa5 {[%emt 0:00:03]} 53. bxa5 {[%emt 0:00:05]} Nb4+ {[%emt 0:00:04]} 54. Ke4 {[%emt 0:00:19]} Nxc2 {[%emt 0:00:12]} 55. Rxc2 {[%emt 0:00:05]} b4 {[%emt 0:00:15]} 56. Nc4 {[%emt 0:00:33]} b3 {[%emt 0:00:15]} 57. axb3 {[%emt 0:00:06]} axb3 {[%emt 0:00:04]} 58. Rb2 {[%emt 0:00:07]} Rb4 {[%emt 0:00:05]} 59. Kd3 {[%emt 0:00:11]} 1-0